bitfinex-derivatives/quotes_SOLF0:USTF0_20260226
["timestamp","ask_amount","ask_price","bid_price","bid_amount"]
[1772066612261,9.68432072,88.509,88.467,0.07141217]
[1772066613062,10.167,88.511,88.467,24.23816973]
[1772066613961,10.1678,88.504,88.467,0.07141217]
[1772066617563,10.1668,88.512,88.467,0.07141217]
[1772066618265,20.17046216,88.512,88.467,0.07141217]
[1772066618465,10.1668,88.512,88.467,24.23816973]
[1772066619265,20.17810154,88.512,88.467,0.07141217]
[1772066619861,10.44453525,88.556,88.467,0.07141217]
[1772066619862,10.0179413,88.55,88.468,24.16675756]
[1772066620062,10.0252321,88.539,88.468,24.16675756]
[1772066620257,10.1646,88.531,88.475,24.16675756]
[1772066620957,10.1654,88.524,88.494,0.07267946]
[1772066621161,10.0252321,88.539,88.494,0.07267946]
[1772066621558,10.1661,88.518,88.494,0.07267946]
[1772066624466,8.76979418,88.56,88.495,24.16675756]
[1772066624667,11.14970769,88.6,88.511,24.16675756]
[1772066625369,14.41219644,88.6,88.54,3.26248875]
[1772066625570,11.14970769,88.6,88.547,0.07562902]
[1772066626872,11.14970769,88.6,88.55,3.26248875]
[1772066627474,11.14970769,88.6,88.542,24.16675756]
[1772066627870,10.1554,88.611,88.542,24.16675756]
[1772066628070,9.98996495,88.61,88.542,24.16675756]
[1772066628266,9.98996495,88.585,88.507,24.16675756]
[1772066629167,10.1585,88.584,88.518,24.16675756]
[1772066629573,9.98996495,88.585,88.521,24.16675756]
[1772066629773,9.98996495,88.585,88.523,24.16675756]
[1772066629975,9.95995445,88.609,88.523,24.16675756]
[1772066630174,10.1558,88.608,88.523,24.16675756]
[1772066630375,10.1558,88.608,88.537,24.16675756]
[1772066630573,9.95995445,88.609,88.541,24.16675756]
[1772066630974,9.95995445,88.609,88.564,0.07578625]
[1772066631677,8.73761713,88.63,88.564,0.07578625]
[1772066631678,9.37262829,88.628,88.565,24.16675756]
[1772066632677,9.37262829,88.628,88.588,0.07628302]
[1772066632876,10.1537,88.626,88.588,0.07628302]
[1772066633074,9.37262829,88.628,88.588,0.07628302]
[1772066634580,0.0731526,88.617,88.547,24.16675756]
[1772066634782,9.33702033,88.616,88.547,24.16675756]
[1772066635179,9.33702033,88.616,88.463,158.2366]
[1772066635180,9.3428434,88.633,88.55,24.16675756]
[1772066635685,9.3003317,88.622,88.555,24.16675756]
[1772066636591,9.30662917,88.618,88.536,24.70299897]
[1772066637084,9.3127664,88.599,88.536,24.70299897]
[1772066637289,0.07261853,88.586,88.536,24.70299897]
[1772066640894,9.24390835,88.623,88.536,24.70299897]
[1772066641086,9.24390835,88.623,88.553,24.70299897]
[1772066641589,10.1551,88.614,88.553,24.70299897]
[1772066641789,9.24390835,88.623,88.553,24.70299897]
[1772066641990,9.24390835,88.623,88.531,24.70299897]
[1772066642291,9.57087781,88.608,88.575,0.07172845]
[1772066642592,9.57087781,88.608,88.531,24.70299897]
[1772066642794,9.57087027,88.588,88.514,24.70299897]
[1772066643591,10.1613,88.56,88.514,24.70299897]
[1772066644092,9.64221435,88.559,88.497,24.70299897]
[1772066645482,0.07235885,88.537,88.497,24.70299897]
[1772066647790,10.1613,88.56,88.497,24.70299897]
[1772066648191,10.1602,88.57,88.501,24.70299897]
[1772066648390,9.65821179,88.6,88.501,24.70299897]
[1772066648594,8.73652169,88.61,88.501,24.70299897]
[1772066648595,9.65820257,88.589,88.501,24.70299897]
[1772066648795,9.65820257,88.562,88.501,24.70299897]
[1772066649194,9.65820257,88.562,88.536,0.07722502]
[1772066649994,10.1625,88.55,88.536,0.07722502]
[1772066650698,9.78782257,88.599,88.536,0.07722502]
[1772066651399,9.78782257,88.599,88.533,24.70299897]
[1772066651799,10.159,88.58,88.533,24.70299897]
[1772066652099,9.50381722,88.618,88.557,24.78058737]
[1772066652289,10.156,88.606,88.557,24.78058737]
[1772066652600,9.50381722,88.618,88.557,24.70299897]
[1772066653002,10.1571,88.597,88.557,24.70299897]
[1772066653301,9.50381722,88.618,88.557,24.70299897]
[1772066653502,9.50381722,88.618,88.579,0.07295954]
[1772066653898,9.74147039,88.638,88.579,0.07295954]
[1772066654599,9.74147039,88.638,88.557,24.70299897]
[1772066654996,10.1552,88.613,88.557,24.70299897]
[1772066655195,9.75210073,88.621,88.557,24.70299897]
[1772066655398,9.75210073,88.621,88.531,24.70299897]
[1772066655604,0.07733793,88.594,88.531,24.70299897]
[1772066656004,9.70673688,88.592,88.511,24.70299897]
[1772066656500,9.70673656,88.59,88.515,24.70299897]
[1772066656706,8.73652169,88.6,88.515,24.70299897]
[1772066656707,9.70673656,88.588,88.515,24.70299897]
[1772066657005,0.07248696,88.56,88.515,24.70299897]
[1772066657609,0.07248696,88.56,88.499,24.70299897]
[1772066658105,9.68120919,88.571,88.499,24.70299897]
[1772066658902,0.07753058,88.544,88.499,24.70299897]
[1772066659107,33.88,88.591,88.499,24.70299897]
[1772066659304,33.88,88.589,88.526,0.07725503]
[1772066659498,10.1601,88.57,88.526,24.780254]
[1772066659906,9.76848652,88.59,88.526,24.70299897]
[1772066660303,6.53975727,88.61,88.526,24.70299897]
[1772066660609,6.53975727,88.61,88.511,24.70299897]
[1772066661007,10.1607,88.566,88.511,24.70299897]
[1772066662605,0.07196506,88.547,88.511,24.70299897]
[1772066664617,10.1629,88.546,88.511,24.70299897]
[1772066665807,0.07196506,88.547,88.511,24.70299897]
[1772066669612,10.1603,88.568,88.512,23.79273075]
[1772066670819,10.1603,88.568,88.515,23.79273075]
[1772066671322,10.1612,88.561,88.515,23.79273075]
[1772066672511,10.1602,88.57,88.515,23.79273075]
[1772066673718,10.1602,88.57,88.517,25.13225628]
[1772066675223,10.1591,88.579,88.519,25.13225628]
[1772066676423,6.76746418,88.609,88.534,25.13225628]
[1772066677125,10.1561,88.606,88.538,25.13225628]
[1772066677426,6.76746418,88.609,88.538,25.13225628]
[1772066677628,10.1591,88.579,88.517,25.13225628]
[1772066678121,10.16,88.571,88.517,25.13225628]
[1772066678316,6.86061333,88.583,88.517,25.13225628]
[1772066680026,10.161,88.563,88.517,25.13225628]
[1772066681425,10.161,88.563,88.531,0.07124411]
[1772066684832,33.88,88.607,88.531,0.07124411]
[1772066684833,6.87073383,88.598,88.532,25.13225628]
[1772066685331,6.87422216,88.561,88.519,6.0]
[1772066685531,6.87422216,88.561,88.516,25.13225628]
[1772066685730,6.92301026,88.58,88.516,25.13225628]
[1772066686032,10.1594,88.577,88.526,25.13225628]
[1772066688332,10.1604,88.568,88.526,25.13225628]
[1772066690238,10.1604,88.568,88.538,0.07204343]
[1772066695645,7.0125048,88.584,88.538,0.07204343]
[1772066696956,10.1609,88.564,88.538,0.07204343]
[1772066697243,33.88,88.599,88.511,10.1668]
[1772066697244,6.41528492,88.571,88.511,24.20719065]
[1772066697442,10.1629,88.546,88.491,24.20719065]
[1772066698447,6.34289388,88.577,88.491,24.20719065]
[1772066698645,6.34289388,88.577,88.493,24.20719065]
[1772066698850,6.34289388,88.577,88.495,20.73996355]
[1772066699040,6.34289388,88.577,88.496,24.20719065]
[1772066699350,10.1598,88.573,88.511,24.20719065]
[1772066699545,6.34289388,88.577,88.511,24.20719065]
[1772066699849,10.1616,88.558,88.511,24.20719065]
[1772066700050,6.34289388,88.577,88.511,24.20719065]
[1772066700450,6.34159451,88.593,88.513,24.20719065]
[1772066700751,6.34159451,88.593,88.517,24.20719065]
[1772066700954,10.1589,88.581,88.544,0.07377569]
[1772066702353,6.23387513,88.57,88.511,24.20719065]
[1772066703652,0.07341288,88.549,88.511,24.20719065]
[1772066703849,6.17858528,88.585,88.511,24.20719065]
[1772066704645,10.1596,88.574,88.515,24.20719065]
[1772066705750,10.1596,88.574,88.536,0.0743483]
[1772066706749,10.1605,88.567,88.536,0.0743483]
[1772066708149,6.17858528,88.585,88.536,0.0743483]
[1772066708150,6.17858528,88.585,88.536,24.28153895]
[1772066708854,16.33708528,88.585,88.536,24.28153895]
[1772066709354,10.1704,88.481,88.431,36.77401453]
[1772066709553,42.62250081,88.51,88.431,36.77401453]
[1772066709750,8.23897415,88.509,88.431,36.77401453]
[1772066710257,10.1691,88.492,88.431,36.77401453]
[1772066710854,9.59472738,88.491,88.431,36.77401453]
[1772066711156,0.07833099,88.47,88.431,36.77401453]
[1772066712048,10.1691,88.492,88.431,36.77401453]
[1772066712550,8.74250081,88.51,88.431,36.77401453]
[1772066712757,33.88,88.54,88.431,36.77401453]
[1772066712758,8.74250081,88.53,88.431,36.77401453]
[1772066713159,8.74250081,88.53,88.445,36.73199082]
[1772066713753,10.1675,88.506,88.445,36.73199082]
[1772066714457,10.1675,88.506,88.467,0.07312333]
[1772066715449,10.1698,88.486,88.467,0.07312333]
[1772066715654,9.58078929,88.529,88.445,36.73199082]
[1772066716459,8.74250081,88.53,88.445,36.73199082]
[1772066716855,10.1668,88.512,88.445,36.73199082]
[1772066717860,10.1668,88.512,88.446,10.1743]
[1772066718061,10.1668,88.512,88.447,36.80251797]
[1772066718654,0.07133112,88.488,88.447,36.80251797]
[1772066720556,0.07133112,88.488,88.447,42.80251797]
[1772066720757,0.07133112,88.488,88.449,10.174]
[1772066721063,0.07133112,88.488,88.45,36.72807282]
[1772066721258,10.1668,88.512,88.45,36.72807282]
[1772066722659,10.1668,88.512,88.472,0.07676803]
[1772066723257,3.26957055,88.5,88.472,0.07676803]
[1772066723655,3.26957055,88.51,88.472,0.07676803]
[1772066726263,3.26957055,88.5,88.472,0.07676803]
[1772066727158,3.26957055,88.5,88.44,3.26957055]
[1772066727159,3.26957055,88.48,88.432,37.07689362]
[1772066727354,3.26957055,88.47,88.401,37.11527764]
[1772066727658,3.26957055,88.44,88.401,37.11527764]
[1772066729058,158.1624,88.506,88.401,37.11527764]
[1772066729059,33.88,88.481,88.401,37.11527764]
[1772066729261,158.0825,88.55,88.327,11.50608941]
[1772066729262,8.76295047,88.5,88.421,37.07457874]
[1772066729455,8.76295047,88.48,88.371,36.98234896]
[1772066729654,8.76295047,88.48,88.398,36.98234896]
[1772066730068,8.76295047,88.5,88.398,36.98234896]
[1772066730465,10.1704,88.481,88.417,36.98234896]
[1772066730867,10.1704,88.481,88.44,0.07261099]
[1772066731368,8.76295047,88.5,88.44,0.07261099]
[1772066732072,8.76295047,88.5,88.422,37.04914534]
[1772066732266,8.76295047,88.5,88.461,0.07917352]
[1772066732462,8.76295047,88.5,88.422,37.04914534]
[1772066732867,10.1702,88.482,88.422,37.04914534]
[1772066733066,10.1702,88.482,88.422,43.04914534]
[1772066733672,10.1716,88.47,88.422,43.04914534]
[1772066734562,10.1716,88.47,88.422,37.04914534]
[1772066735061,0.07305936,88.455,88.422,37.04914534]
[1772066739171,0.07305936,88.455,88.386,37.07671116]
[1772066739665,33.88,88.458,88.386,37.07671116]
[1772066740067,10.1766,88.427,88.386,37.07671116]
[1772066740267,33.88,88.456,88.386,37.07671116]
[1772066740669,8.76295047,88.46,88.386,37.07671116]
[1772066740670,9.58431771,88.459,88.386,37.07671116]
[1772066740870,9.58431771,88.459,88.35,8.76295047]
[1772066740871,33.88,88.459,88.369,37.06670417]
[1772066741269,10.1768,88.425,88.369,37.06670417]
[1772066741473,33.88,88.457,88.369,37.06670417]
[1772066741867,0.07254476,88.406,88.369,37.06670417]
[1772066743970,0.07254476,88.406,88.351,36.66277151]
[1772066744575,33.88,88.437,88.351,36.66277151]
[1772066744776,10.1781,88.413,88.353,36.66335655]
[1772066744975,0.07886025,88.387,88.353,36.66335655]
[1772066748279,0.07886025,88.387,88.354,36.80218494]
[1772066750276,9.5663355,88.438,88.354,36.80218494]
[1772066750469,43.4463355,88.439,88.354,36.80218494]
[1772066751677,43.4463355,88.439,88.388,0.07343624]
[1772066752080,10.1768,88.425,88.388,0.07343624]
[1772066752581,10.1777,88.417,88.388,0.07343624]
[1772066756590,10.1786,88.409,88.388,0.07343624]
[1772066756786,9.5663355,88.438,88.354,36.80218494]
[1772066756787,33.88,88.437,88.354,36.80218494]
[1772066757088,33.88,88.435,88.354,36.80218494]
[1772066757277,43.4463355,88.435,88.354,36.80218494]
[1772066757477,8.76295047,88.44,88.354,36.80218494]
[1772066757478,10.1785,88.41,88.354,36.80218494]
[1772066757988,9.5663355,88.432,88.354,36.80218494]
[1772066758287,33.88,88.433,88.354,36.80218494]
[1772066758488,33.88,88.437,88.354,36.80218494]
[1772066758688,10.1793,88.403,88.354,36.80218494]
[1772066760086,0.07250705,88.405,88.354,36.80218494]
[1772066760087,10.1801,88.396,88.354,36.80218494]
[1772066760283,10.1801,88.396,88.339,37.13288631]
[1772066760480,0.07250705,88.405,88.339,37.13288631]
[1772066760787,8.50384186,88.428,88.241,158.6355]
[1772066760788,33.88,88.399,88.313,37.13347625]
[1772066760986,9.5663355,88.417,88.313,37.13347625]
[1772066761183,10.1798,88.399,88.348,37.13347625]
[1772066761379,17.26905715,88.44,88.348,37.13347625]
[1772066761380,9.5663355,88.436,88.348,37.13347625]
[1772066761581,18.32928597,88.44,88.348,37.13347625]
[1772066761782,9.5663355,88.44,88.365,37.11867944]
[1772066762084,43.4463355,88.44,88.365,37.11867944]
[1772066762688,52.20928597,88.44,88.365,37.11867944]
[1772066762883,33.88,88.438,88.365,37.11867944]
[1772066763079,0.0719287,88.411,88.365,37.11867944]
[1772066763995,0.0719287,88.411,88.366,10.1834]
[1772066764194,0.0719287,88.411,88.366,47.15086449]
[1772066764394,0.0719287,88.411,88.336,36.96798325]
[1772066764598,10.1811,88.387,88.336,36.96798325]
[1772066764892,33.88,88.427,88.336,36.96798325]
[1772066765898,9.5663355,88.429,88.337,10.1869]
[1772066765899,10.1802,88.396,88.337,10.1869]
[1772066766195,10.1802,88.396,88.338,36.96801181]
[1772066767096,10.181,88.389,88.338,36.96801181]
[1772066767894,9.5663355,88.419,88.339,36.90269363]
[1772066768100,9.5663355,88.419,88.32,8.77379662]
[1772066768101,9.5663355,88.428,88.341,36.90269363]
[1772066768396,18.0815183,88.439,88.341,36.90269363]
[1772066768597,10.1779,88.415,88.351,36.90318729]
[1772066769198,9.5663355,88.439,88.365,36.90318729]
[1772066769388,443.45518902,88.441,88.365,36.90318729]
[1772066769389,9.5663355,88.44,88.365,36.90318729]
[1772066769692,443.45518902,88.441,88.365,36.90318729]
[1772066769891,9.57942051,88.44,88.374,36.90841072]
[1772066770296,10.1774,88.42,88.374,36.90841072]
[1772066770799,9.57942051,88.439,88.374,36.90841072]
[1772066770985,443.45518902,88.441,88.374,36.90841072]
[1772066770986,9.57942051,88.44,88.374,36.90841072]
[1772066771186,9.57942051,88.439,88.374,36.90841072]
[1772066771390,9.57942051,88.438,88.374,36.90841072]
[1772066771590,9.57942051,88.437,88.374,36.90841072]
[1772066771791,9.57942051,88.437,88.322,6.0]
[1772066771792,9.57942051,88.44,88.398,0.07767699]
[1772066771998,443.45518902,88.441,88.399,36.52811952]
[1772066773190,443.45518902,88.441,88.411,0.07366875]
[1772066773395,9.60306108,88.44,88.411,0.07366875]
[1772066773794,9.60306108,88.44,88.381,36.5285029]
[1772066774196,9.60306108,88.44,88.417,0.07592923]
[1772066774498,0.07221608,88.419,88.381,36.5285029]
[1772066774992,9.60306108,88.437,88.381,36.5285029]
[1772066775300,9.60306108,88.44,88.383,36.57689963]
[1772066775796,0.07276905,88.42,88.386,36.482782]
[1772066777403,279.55328068,88.477,88.386,36.482782]
[1772066777598,18.16508194,88.469,88.386,36.482782]
[1772066777796,9.61342534,88.468,88.386,36.482782]
[1772066778091,9.61342534,88.467,88.386,36.482782]
[1772066778296,9.61342534,88.466,88.386,36.482782]
[1772066778501,9.61342534,88.465,88.386,36.482782]
[1772066778797,9.61342534,88.464,88.419,35.21964912]
[1772066778994,9.61342534,88.476,88.419,35.21964912]
[1772066779189,9.61342534,88.475,88.419,35.21964912]
[1772066779399,279.55328068,88.477,88.422,35.2426131]
[1772066779400,9.61336019,88.474,88.422,35.2426131]
[1772066779597,9.61336019,88.473,88.422,35.2426131]
[1772066779796,9.61336019,88.472,88.422,35.2426131]
[1772066780099,10.1678,88.503,88.432,35.2426131]
[1772066780301,9.61259331,88.502,88.432,35.2426131]
[1772066780600,8.77379662,88.51,88.432,35.2426131]
[1772066780601,9.61259331,88.501,88.432,35.2426131]
[1772066780805,9.61259331,88.5,88.437,35.24269821]
[1772066780991,9.61259331,88.499,88.437,35.24269821]
[1772066781191,10.1685,88.497,88.437,35.24269821]
[1772066781396,9.61259331,88.496,88.437,35.24269821]
[1772066781598,9.61259331,88.495,88.437,35.24269821]
[1772066781902,9.61259331,88.494,88.458,0.07496134]
[1772066782102,9.61259331,88.493,88.458,0.07496134]
[1772066782302,9.61259331,88.492,88.458,0.07496134]
[1772066782604,9.61259331,88.491,88.458,0.07496134]
[1772066782902,9.61259331,88.49,88.458,0.07496134]
[1772066783100,9.61259331,88.489,88.458,0.07496134]
[1772066783402,9.61259331,88.496,88.458,0.07496134]
[1772066783605,9.61259331,88.495,88.458,0.07496134]
[1772066783799,9.61259331,88.494,88.458,0.07496134]
[1772066783995,9.61259331,88.509,88.458,0.07496134]
[1772066784193,9.61259331,88.508,88.458,0.07496134]
[1772066784403,9.61259331,88.507,88.458,0.07496134]
[1772066784604,9.61259331,88.506,88.458,0.07496134]
[1772066784802,9.61259331,88.505,88.458,0.07496134]
[1772066784999,9.61259331,88.504,88.42,8.77379662]
[1772066785204,33.88,88.502,88.417,35.62647155]
[1772066785406,18.16394539,88.501,88.417,35.62647155]
[1772066785600,10.171,88.476,88.417,35.62647155]
[1772066785802,9.61259331,88.475,88.417,35.62647155]
[1772066786008,9.61259331,88.474,88.417,35.62647155]
[1772066786308,8.77379662,88.49,88.438,0.07311288]
[1772066786507,9.61259331,88.489,88.438,0.07311288]
[1772066786700,9.61259331,88.488,88.438,0.07311288]
[1772066786895,10.1715,88.471,88.417,35.62647155]
[1772066787699,10.1715,88.471,88.435,0.07622975]
[1772066788903,8.53024876,88.499,88.435,0.07622975]
[1772066788904,9.61259331,88.489,88.435,35.52946807]
[1772066789107,8.77379662,88.52,88.435,35.52946807]
[1772066789108,18.1396059,88.516,88.435,35.52946807]
[1772066789312,9.61259331,88.515,88.435,35.52946807]
[1772066789510,9.61259331,88.514,88.435,35.45323832]
[1772066789704,8.77379662,88.52,88.435,35.45323832]
[1772066789705,9.61259331,88.513,88.435,35.45323832]
[1772066789903,9.61259331,88.512,88.435,35.45323832]
[1772066790105,9.61259331,88.512,88.411,6.0]
[1772066790106,10.1678,88.503,88.438,35.45227228]
[1772066790306,9.61259331,88.519,88.45,8.77379662]
[1772066790502,8.77379662,88.54,88.451,35.45227228]
[1772066790503,9.61259331,88.539,88.451,35.45227228]
[1772066790704,9.61259331,88.538,88.451,35.45227228]
[1772066790903,9.61259331,88.537,88.451,35.45227228]
[1772066791103,8.77379662,88.54,88.451,35.45227228]
[1772066791104,9.61259331,88.539,88.451,35.45227228]
[1772066791401,9.61259331,88.538,88.451,35.45227228]
[1772066791601,9.61259331,88.537,88.451,35.45227228]
[1772066791808,9.61259331,88.539,88.451,35.45227228]
[1772066792010,10.1648,88.529,88.486,0.0752015]
[1772066792609,10.1648,88.529,88.471,35.47352951]
[1772066793010,10.1648,88.529,88.499,0.07530187]
[1772066794211,10.1657,88.521,88.499,0.07530187]
[1772066794414,33.88,88.539,88.455,35.50417384]
[1772066794715,33.88,88.537,88.455,35.50417384]
[1772066794905,33.88,88.535,88.455,35.50417384]
[1772066795706,0.07445657,88.504,88.455,35.50417384]
[1772066796414,0.07445657,88.504,88.431,6.0]
[1772066796415,0.07445657,88.504,88.464,35.52590369]
[1772066796614,8.77379662,88.54,88.464,35.52590369]
[1772066798014,10.1646,88.531,88.466,35.54006895]
[1772066798511,10.1654,88.524,88.468,35.5401864]
[1772066798709,8.77379662,88.54,88.468,35.5401864]
[1772066799514,33.88,88.539,88.451,35.5445484]
[1772066800520,10.1667,88.513,88.451,35.5445484]
[1772066800915,33.88,88.537,88.451,35.5445484]
[1772066801520,9.61259331,88.539,88.485,0.07341001]
[1772066801829,8.77379662,88.54,88.485,0.07341001]
[1772066802030,8.77379662,88.54,88.468,35.60687772]
[1772066803032,10.1654,88.524,88.468,35.60687772]
[1772066803527,8.77379662,88.54,88.472,35.63239167]
[1772066803528,10.1644,88.533,88.472,35.63239167]
[1772066805819,10.1651,88.526,88.472,35.63239167]
[1772066806325,8.77379662,88.54,88.472,35.63239167]
[1772066808632,10.1659,88.52,88.472,35.63239167]
[1772066809131,10.1659,88.52,88.487,0.07355327]
[1772066810229,10.165,88.528,88.487,0.07355327]
[1772066812132,10.165,88.528,88.487,35.91314479]
[1772066813336,9.61259331,88.527,88.487,35.91314479]
[1772066813531,10.165,88.528,88.487,35.91314479]
[1772066813532,9.61259331,88.526,88.487,35.91314479]
[1772066813734,9.61259331,88.525,88.487,35.91314479]
[1772066814034,9.61259331,88.527,88.487,35.91314479]
[1772066814236,8.77379662,88.54,88.487,0.07355327]
[1772066814237,10.1653,88.525,88.487,0.07355327]
[1772066814436,9.61259331,88.524,88.487,0.07355327]
[1772066814637,9.61259331,88.523,88.487,0.07355327]
[1772066814832,19.77829331,88.522,88.487,0.07355327]
[1772066815039,9.61259331,88.521,88.487,0.07355327]
[1772066815231,9.61259331,88.52,88.487,0.07355327]
[1772066815426,9.61259331,88.519,88.487,0.07355327]
[1772066815632,9.61259331,88.518,88.487,0.07355327]
[1772066815834,9.61259331,88.517,88.487,0.07355327]
[1772066816131,19.77899331,88.516,88.487,0.07355327]
[1772066816338,9.61259331,88.515,88.487,0.07355327]
[1772066816637,9.61259331,88.514,88.487,0.07355327]
[1772066816834,9.61259331,88.513,88.487,0.07355327]
[1772066817136,9.61259331,88.512,88.487,0.07355327]
[1772066817336,9.61259331,88.511,88.487,0.07355327]
[1772066817536,10.1672,88.509,88.487,0.07355327]
[1772066817738,8.77379662,88.54,88.487,0.07355327]
[1772066817936,9.64652951,88.539,88.487,0.07355327]
[1772066818132,9.64652951,88.538,88.487,0.07355327]
[1772066818333,9.64652951,88.537,88.487,0.07355327]
[1772066818534,9.64652951,88.536,88.487,0.07355327]
[1772066818736,9.64652951,88.535,88.487,0.07355327]
[1772066819040,9.64652951,88.534,88.487,0.07355327]
[1772066819241,9.64652951,88.533,88.487,0.07355327]
[1772066819434,9.64652951,88.532,88.487,0.07355327]
[1772066819636,10.166,88.519,88.487,0.07355327]
[1772066819938,9.64652951,88.518,88.487,0.07355327]
[1772066820139,9.64652951,88.517,88.487,0.07355327]
[1772066820338,9.64652951,88.516,88.487,0.07355327]
[1772066820536,9.64652951,88.515,88.487,0.07355327]
[1772066820734,9.64652951,88.514,88.487,0.07355327]
[1772066820939,9.64652951,88.513,88.487,0.07355327]
[1772066821139,9.64652951,88.512,88.487,0.07355327]
[1772066821341,8.51013688,88.538,88.487,35.07349486]
[1772066821540,19.21496282,88.58,88.489,30.17510827]
[1772066821841,19.21496282,88.58,88.45,8.77379662]
[1772066821842,8.54447752,88.579,88.491,30.17510827]
[1772066822032,8.54447752,88.578,88.491,30.17510827]
[1772066822344,8.54447752,88.579,88.526,30.24797688]
[1772066822638,8.54447752,88.578,88.526,30.24797688]
[1772066822842,8.54447752,88.579,88.526,30.17510827]
[1772066823039,8.54447752,88.578,88.526,30.17510827]
[1772066823241,8.54447752,88.577,88.526,30.17510827]
[1772066823439,8.54447752,88.579,88.526,30.17510827]
[1772066823640,8.54447752,88.578,88.526,30.17510827]
[1772066823839,8.54447752,88.577,88.526,30.17510827]
[1772066824039,10.1607,88.565,88.526,30.17510827]
[1772066824836,8.77379662,88.56,88.491,30.38198628]
[1772066825041,8.54447752,88.559,88.491,30.38198628]
[1772066825244,8.75321617,88.55,88.491,30.38198628]
[1772066825445,42.42447752,88.549,88.472,30.38198628]
[1772066825641,33.88,88.547,88.472,30.38198628]
[1772066825839,33.88,88.545,88.472,30.38198628]
[1772066826041,10.1666,88.514,88.472,30.38198628]
[1772066826945,10.4411662,88.562,88.472,30.38198628]
[1772066827150,8.75321617,88.58,88.481,26.08804568]
[1772066827444,0.03772266,88.582,88.481,26.08804568]
[1772066828050,10.4411662,88.595,88.501,27.12199474]
[1772066828242,10.4411662,88.599,88.501,27.12199474]
[1772066828447,10.1598,88.573,88.517,27.12249681]
[1772066829051,10.1598,88.573,88.519,27.12249681]
[1772066829749,10.1606,88.566,88.519,27.12249681]
[1772066830248,0.07311128,88.555,88.519,27.12249681]
[1772066830645,0.07311128,88.555,88.501,10.1679]
[1772066830849,0.07311128,88.555,88.501,38.0946291]
[1772066831046,0.07311128,88.555,88.502,27.9267291]
[1772066831240,10.1617,88.557,88.502,27.9267291]
[1772066831649,10.1617,88.557,88.501,10.1679]
[1772066831650,10.1606,88.566,88.505,28.51317248]
[1772066832946,10.1606,88.566,88.509,28.51416527]
[1772066833348,10.1616,88.557,88.509,28.51416527]
[1772066833551,9.43976326,88.579,88.509,28.51416527]
[1772066833751,9.43976326,88.578,88.509,28.51416527]
[1772066833950,9.43976326,88.577,88.509,28.51416527]
[1772066834249,9.43976326,88.576,88.509,28.51416527]
[1772066834447,9.43976326,88.575,88.509,28.51416527]
[1772066834650,9.43976326,88.574,88.509,28.51416527]
[1772066834846,9.43976326,88.573,88.509,28.51416527]
[1772066835051,10.1606,88.566,88.511,28.82282369]
[1772066835547,10.1606,88.566,88.53,0.07450717]
[1772066836150,19.59569077,88.575,88.531,29.08768235]
[1772066836350,10.1595,88.575,88.531,29.08768235]
[1772066837058,9.43619077,88.583,88.531,29.08768235]
[1772066837251,9.43619077,88.582,88.531,29.08768235]
[1772066837455,10.1585,88.584,88.531,29.08768235]
[1772066837456,9.43619077,88.583,88.531,29.08768235]
[1772066837656,9.43619077,88.582,88.531,29.08768235]
[1772066837854,9.43619077,88.586,88.531,29.08768235]
[1772066838053,9.43619077,88.585,88.531,29.08768235]
[1772066838254,9.43619077,88.584,88.531,29.08768235]
[1772066838454,8.75321617,88.58,88.531,29.08768235]
[1772066838655,8.75321617,88.58,88.549,0.07653202]
[1772066838854,8.75321617,88.58,88.549,0.0561382]
[1772066839058,18.18940694,88.58,88.549,0.0561382]
[1772066839253,8.75321617,88.58,88.549,0.0561382]
[1772066839857,10.1599,88.572,88.549,0.0561382]
[1772066840861,10.1607,88.565,88.549,0.0561382]
[1772066841959,8.75321617,88.58,88.515,29.12847338]
[1772066842157,9.43619077,88.579,88.515,29.12847338]
[1772066842358,9.43619077,88.578,88.515,29.12847338]
[1772066842558,9.43619077,88.579,88.515,29.12847338]
[1772066842758,9.43619077,88.578,88.515,29.12847338]
[1772066842960,10.1615,88.558,88.515,29.12847338]
[1772066843361,0.07293283,88.555,88.515,29.12847338]
[1772066848166,33.88,88.597,88.481,6.0]
[1772066848167,8.75321617,88.6,88.527,24.91359668]
[1772066848362,9.47314602,88.597,88.527,24.91359668]
[1772066848763,10.1603,88.569,88.527,24.91359668]
[1772066848964,4.4548539,88.579,88.527,24.91359668]
[1772066849159,4.47767297,88.578,88.527,24.91359668]
[1772066849365,3.26501459,88.56,88.527,24.91359668]
[1772066850365,3.26501459,88.57,88.527,24.91359668]
[1772066851266,3.26501459,88.58,88.527,24.91359668]
[1772066851464,3.26501459,88.58,88.54,0.07237375]
[1772066851665,3.26501459,88.57,88.54,0.07237375]
[1772066852462,10.1603,88.568,88.54,0.07237375]
[1772066852659,3.26501459,88.55,88.511,25.38560942]
[1772066852858,3.26501459,88.55,88.495,25.38560942]
[1772066852859,3.26501459,88.54,88.495,25.38560942]